{"text_format":"1","workbook":"xlsx","n_sheets":3,"sheets":["Juhtpaneel","Seadmete nimekiri","Liigendandmed"],"not_rendered":{"charts":0,"images":0,"macros":1,"external_links":0,"defined_names":13,"comments":0,"pivot_tables":1},"unopened":[],"bounds":{"document_bytes":16777216,"sheet_cells":100000,"rows_first":2000,"rows_last":500,"rows_between":2000,"halvings":0,"cell_chars":16384,"cell_head_chars":4096},"cells_cut":0,"cells_raw":0,"read":"whole","date_system":"1900"}

{"sheet":"Juhtpaneel","index":0,"n_rows":20,"n_cols":6,"rows_kept":20,"cut":false,"hidden":false,"merged":[]}
[null,"Juhtpaneel"]
[]
[]
[null,null,null,null,null,"Arv kokku"]
[null,null,null,null,null,{"$f":"GETPIVOTDATA(\"Kogus\",Liigendandmed!$B$11)","v":3}]
[]
[null,null,null,null,null,"Kulud kuus kokku"]
[null,null,null,null,null,{"$f":"GETPIVOTDATA(\"Kuukulud kokku\",Liigendandmed!$B$11)","v":1765.5943035068672}]
[]
[null,null,null,null,null,"Tegevuskulud"]
[null,null,null,null,null,{"$f":"GETPIVOTDATA(\"Tegevuskulud\",Liigendandmed!$B$11)","v":605}]
[]
[null,null,null,null,null,"Amortisatsioon kuus"]
[null,null,null,null,null,{"$f":"GETPIVOTDATA(\"Igakuine amortisatsioon\",Liigendandmed!$B$11)","v":659.72222222222217}]
[]
[null,null,null,null,null,"Maksesumma"]
[null,null,null,null,null,{"$f":"GETPIVOTDATA(\"Makse summa\",Liigendandmed!$B$11)","v":1160.5943035068672}]
[]
[null,null,null,null,null,"Praegune väärtus"]
[null,null,null,null,null,{"$f":"GETPIVOTDATA(\"Praegune väärtus\",Liigendandmed!$B$11)","v":32392.237442922375}]

{"sheet":"Seadmete nimekiri","index":1,"n_rows":10,"n_cols":20,"rows_kept":10,"cut":false,"hidden":false,"merged":[]}
[null,"Seadmete nimekiri"]
[]
[null,null,null,"Tõsta esile, kui allesjäänud kuumaksete arv on väiksem kui: ",20]
[]
[null,"Vara või\nseerianumber","Üksuse kirjeldus\n(tootja ja mudel)","Asukoht","Seisund","Pakkuja","Tööaastaid\njäänud ","Algväärtus","Sissemakse","Ostmise või\nliisingu kuupäev","Laenuperiood\n(aastad)","Laenuintress","Tegevuskulud\nkuus","Prognoositud väärtus lepinguperioodi lõppemisel","Kuumakseid\njäänud","Kuumakse","Kulud\nkuus kokku","Aasta amortisatsioon\n(lineaarne)","Kuu amortisatsioon\n(lineaarne)","Praegune väärtus"]
[null,123,"Tootja mudel 1","Peakontor","Hea","Kohalik",5,30000,5000,"2011-01-15",4,0.1,200,20000,{"$f":"IFERROR(SUMPRODUCT(--(DAY(ROW(OFFSET($A$1,,,DATE(YEAR(Seadmed[[#This Row],[Ostmise või\nliisingu kuupäev]])+Seadmed[[#This Row],[Laenuperiood\n(aastad)]],MONTH(Seadmed[[#This Row],[Ostmise või\nliisingu kuupäev]])-1,DAY(Seadmed[[#This Row],[Ostmise või\nliisingu kuupäev]]))-TODAY()))+DATE(YEAR(Seadmed[[#This Row],[Ostmise või\nliisingu kuupäev]])+Seadmed[[#This Row],[Laenuperiood\n(aastad)]],MONTH(Seadmed[[#This Row],[Ostmise või\nliisingu kuupäev]]),DAY(Seadmed[[#This Row],[Ostmise või\nliisingu kuupäev]]))-1)=DAY(Seadmed[[#This Row],[Ostmise või\nliisingu kuupäev]]))),0)","v":17},{"$f":"IFERROR(-(Seadmed[Algväärtus]>0)*(Seadmed[Algväärtus]<>Seadmed[Sissemakse])*PMT(Seadmed[Laenuintress]/KuudAastas,Seadmed[Laenuperiood\n(aastad)]*KuudAastas,Seadmed[Algväärtus]-Seadmed[Sissemakse]),0)","v":634.06458586867973},{"$f":"Seadmed[[#This Row],[Kuumakse]]+Seadmed[Tegevuskulud\nkuus]","v":834.06458586867973},{"$f":"IFERROR((Seadmed[Algväärtus]>0)*SLN(Seadmed[Algväärtus],Seadmed[Prognoositud väärtus lepinguperioodi lõppemisel],Seadmed[Laenuperiood\n(aastad)]),0)","v":2500},{"$f":"IFERROR(Seadmed[Aasta amortisatsioon\n(lineaarne)]/KuudAastas,0)","v":208.33333333333334},{"$f":"IFERROR(Seadmed[Algväärtus]-(Seadmed[Aasta amortisatsioon\n(lineaarne)]*((TODAY()-Seadmed[Ostmise või\nliisingu kuupäev])/PäevaAastas)),0)","v":23739.726027397261}]
[null,234,"Tootja mudel 2","Peakontor","Hea","Kohalik",4,12500,1500,"2011-03-10",3,7.7499999999999999E-2,120,3000,{"$f":"IFERROR(SUMPRODUCT(--(DAY(ROW(OFFSET($A$1,,,DATE(YEAR(Seadmed[[#This Row],[Ostmise või\nliisingu kuupäev]])+Seadmed[[#This Row],[Laenuperiood\n(aastad)]],MONTH(Seadmed[[#This Row],[Ostmise või\nliisingu kuupäev]])-1,DAY(Seadmed[[#This Row],[Ostmise või\nliisingu kuupäev]]))-TODAY()))+DATE(YEAR(Seadmed[[#This Row],[Ostmise või\nliisingu kuupäev]])+Seadmed[[#This Row],[Laenuperiood\n(aastad)]],MONTH(Seadmed[[#This Row],[Ostmise või\nliisingu kuupäev]]),DAY(Seadmed[[#This Row],[Ostmise või\nliisingu kuupäev]]))-1)=DAY(Seadmed[[#This Row],[Ostmise või\nliisingu kuupäev]]))),0)","v":7},{"$f":"IFERROR(-(Seadmed[Algväärtus]>0)*(Seadmed[Algväärtus]<>Seadmed[Sissemakse])*PMT(Seadmed[Laenuintress]/KuudAastas,Seadmed[Laenuperiood\n(aastad)]*KuudAastas,Seadmed[Algväärtus]-Seadmed[Sissemakse]),0)","v":343.43280007691891},{"$f":"Seadmed[[#This Row],[Kuumakse]]+Seadmed[Tegevuskulud\nkuus]","v":463.43280007691891},{"$f":"IFERROR((Seadmed[Algväärtus]>0)*SLN(Seadmed[Algväärtus],Seadmed[Prognoositud väärtus lepinguperioodi lõppemisel],Seadmed[Laenuperiood\n(aastad)]),0)","v":3166.6666666666665},{"$f":"IFERROR(Seadmed[Aasta amortisatsioon\n(lineaarne)]/KuudAastas,0)","v":263.88888888888886},{"$f":"IFERROR(Seadmed[Algväärtus]-(Seadmed[Aasta amortisatsioon\n(lineaarne)]*((TODAY()-Seadmed[Ostmise või\nliisingu kuupäev])/PäevaAastas)),0)","v":5038.8127853881278}]
[null,345,"Tootja mudel 2","Harukontor 1","Rahuldav","Muu",1,10000,2500,"2010-09-15",4,0.08,285,1000,{"$f":"IFERROR(SUMPRODUCT(--(DAY(ROW(OFFSET($A$1,,,DATE(YEAR(Seadmed[[#This Row],[Ostmise või\nliisingu kuupäev]])+Seadmed[[#This Row],[Laenuperiood\n(aastad)]],MONTH(Seadmed[[#This Row],[Ostmise või\nliisingu kuupäev]])-1,DAY(Seadmed[[#This Row],[Ostmise või\nliisingu kuupäev]]))-TODAY()))+DATE(YEAR(Seadmed[[#This Row],[Ostmise või\nliisingu kuupäev]])+Seadmed[[#This Row],[Laenuperiood\n(aastad)]],MONTH(Seadmed[[#This Row],[Ostmise või\nliisingu kuupäev]]),DAY(Seadmed[[#This Row],[Ostmise või\nliisingu kuupäev]]))-1)=DAY(Seadmed[[#This Row],[Ostmise või\nliisingu kuupäev]]))),0)","v":13},{"$f":"IFERROR(-(Seadmed[Algväärtus]>0)*(Seadmed[Algväärtus]<>Seadmed[Sissemakse])*PMT(Seadmed[Laenuintress]/KuudAastas,Seadmed[Laenuperiood\n(aastad)]*KuudAastas,Seadmed[Algväärtus]-Seadmed[Sissemakse]),0)","v":183.09691756126861},{"$f":"Seadmed[[#This Row],[Kuumakse]]+Seadmed[Tegevuskulud\nkuus]","v":468.09691756126858},{"$f":"IFERROR((Seadmed[Algväärtus]>0)*SLN(Seadmed[Algväärtus],Seadmed[Prognoositud väärtus lepinguperioodi lõppemisel],Seadmed[Laenuperiood\n(aastad)]),0)","v":2250},{"$f":"IFERROR(Seadmed[Aasta amortisatsioon\n(lineaarne)]/KuudAastas,0)","v":187.5},{"$f":"IFERROR(Seadmed[Algväärtus]-(Seadmed[Aasta amortisatsioon\n(lineaarne)]*((TODAY()-Seadmed[Ostmise või\nliisingu kuupäev])/PäevaAastas)),0)","v":3613.6986301369861}]
[null,"Kokku",null,null,null,null,{"$f":"SUBTOTAL(101,Seadmed[Tööaastaid\njäänud ])","v":3.3333333333333335},{"$f":"SUBTOTAL(109,Seadmed[Algväärtus])","v":52500},{"$f":"SUBTOTAL(109,Seadmed[Sissemakse])","v":9000},null,{"$f":"SUBTOTAL(101,Seadmed[Laenuperiood\n(aastad)])","v":3.6666666666666665},{"$f":"SUBTOTAL(101,Seadmed[Laenuintress])","v":8.5833333333333331E-2},{"$f":"SUBTOTAL(109,Seadmed[Tegevuskulud\nkuus])","v":605},{"$f":"SUBTOTAL(109,Seadmed[Prognoositud väärtus lepinguperioodi lõppemisel])","v":24000},{"$f":"SUBTOTAL(101,Seadmed[Kuumakseid\njäänud])","v":12.333333333333334},{"$f":"SUBTOTAL(109,Seadmed[Kuumakse])","v":1160.5943035068672},{"$f":"SUBTOTAL(109,Seadmed[Kulud\nkuus kokku])","v":1765.5943035068672},{"$f":"SUBTOTAL(101,Seadmed[Aasta amortisatsioon\n(lineaarne)])","v":2638.8888888888887},{"$f":"SUBTOTAL(101,Seadmed[Kuu amortisatsioon\n(lineaarne)])","v":219.90740740740739},{"$f":"SUBTOTAL(109,Seadmed[Praegune väärtus])","v":32392.237442922375}]
[null,"Kokku",null,null,null,null,{"$f":"SUBTOTAL(101,Seadmed[Tööaastaid\njäänud ])","v":3.3333333333333335},{"$f":"SUBTOTAL(109,Seadmed[Algväärtus])","v":52500},{"$f":"SUBTOTAL(109,Seadmed[Sissemakse])","v":9000},null,{"$f":"SUBTOTAL(101,Seadmed[Laenuperiood\n(aastad)])","v":3.6666666666666665},{"$f":"SUBTOTAL(101,Seadmed[Laenuintress])","v":8.5833333333333331E-2},{"$f":"SUBTOTAL(109,Seadmed[Tegevuskulud\nkuus])","v":605},{"$f":"SUBTOTAL(109,Seadmed[Prognoositud väärtus lepinguperioodi lõppemisel])","v":24000}]

{"sheet":"Liigendandmed","index":2,"n_rows":15,"n_cols":8,"rows_kept":15,"cut":false,"hidden":true,"merged":[]}
[null,"Liigendandmed"]
[null,"See leht peaks jääma peidetuks. PivotTable-liigendtabeli struktuuri muutmine sellel lehel võib juhtpaneeli tükeldites tõrkeid põhjustada."]
[]
[null,"Üksuse kirjeldus\n(tootja ja mudel)","(Kõik)"]
[null,"Asukoht","(Kõik)"]
[null,"Seisund","(Kõik)"]
[null,"Pakkuja","(Kõik)"]
[null,"Tööaastaid\njäänud ","(Kõik)"]
[null,"Laenuperiood\n(aastad)","(Kõik)"]
[]
[null,"Reasildid","Kogus","Tegevuskulud","Makse summa","Kuukulud kokku","Igakuine amortisatsioon","Praegune väärtus"]
[null,123,1,200,634.06458586867973,834.06458586867973,208.33333333333334,23739.726027397261]
[null,234,1,120,343.43280007691891,463.43280007691891,263.88888888888886,5038.8127853881278]
[null,345,1,285,183.09691756126861,468.09691756126858,187.5,3613.6986301369861]
[null,"Üldkokkuvõte",3,605,1160.5943035068672,1765.5943035068672,659.72222222222217,32392.237442922375]